[Event "32nd Panamerican Youth 2022"]
[Site "Montevideo"]
[Date "2022.07.01"]
[Round "8.17"]
[White "Zacarias Rodriguez, Santiago"]
[Black "Parra Gonzales, Andre Leonardo"]
[Result "1-0"]
[ECO "B41"]
[WhiteElo "2075"]
[BlackElo "1844"]
[Annotator "RC"]
[PlyCount "133"]
[EventDate "2022.06.26"]
[EventType "swiss"]
[EventCountry "URU"]
[SourceTitle "playchess.com"]
[Source "ChessBase"]
[SourceQuality "1"]
[TimeControl "5400+30"]

1. e4 {[%emt 0:00:06]} c5 {[%emt 0:00:13]} 2. Nf3 {[%emt 0:00:05]} e6 {[%emt 0:00:09]} 3. d4 {[%emt 0:00:35]} cxd4 {[%emt 0:00:07]} 4. Nxd4 {[%emt 0:00:22]} a6 {[%emt 0:00:26]} 5. c4 {[%emt 0:03:26]} Nf6 {[%emt 0:00:38]} 6. Nc3 {[%emt 0:00:13]} Bb4 {[%emt 0:00:27]} 7. Qd3 {[%emt 0:00:45]} Qc7 {[%emt 0:02:49]} 8. a3 {[%emt 0:01:43]} Bxc3+ {[%emt 0:11:44]} 9. Qxc3 {[%emt 0:00:37]} O-O {[%emt 0:14:02]} 10. f3 {[%emt 0:16:27]} d5 {[%emt 0:09:09]} 11. exd5 {[%emt 0:05:19]} exd5 {[%emt 0:02:52]} 12. Be2 {[%emt 0:02:10]} dxc4 {[%emt 0:04:46]} 13. Qxc4 {[%emt 0:00:49]} Qxc4 {[%emt 0:01:05]} 14. Bxc4 {[%emt 0:00:01]} b5 {[%emt 0:01:31]} 15. Ba2 {[%emt 0:04:32]} Bb7 {[%emt 0:13:24]} 16. Bg5 {[%emt 0:03:29]} Nbd7 {[%emt 0:01:35]} 17. O-O-O {[%emt 0:10:13]} Rac8+ {[%emt 0:03:41]} 18. Kb1 {[%emt 0:00:06]} Rc5 {[%emt 0:00:41]} 19. Bf4 {[%emt 0:08:53]} Re8 {[%emt 0:05:56]} 20. Rhe1 {[%emt 0:10:36]} Nb6 {[%emt 0:11:38]} 21. Rxe8+ {[%emt 0:08:02]} Nxe8 {[%emt 0:00:02]} 22. Nb3 {[%emt 0:02:24]} Rc8 {[%emt 0:07:23]} 23. Na5 {[%emt 0:01:16]} Ba8 {[%emt 0:00:01]} 24. Be3 {[%emt 0:00:44]} Nc4 {[%emt 0:03:32]} 25. Nxc4 {[%emt 0:00:29]} bxc4 {[%emt 0:00:03]} 26. Rd4 {[%emt 0:00:39]} Nf6 {[%emt 0:01:12]} 27. Bxc4 {[%emt 0:01:27]} Re8 {[%emt 0:00:13]} 28. Bg5 {[%emt 0:01:19]} Bc6 {[%emt 0:02:15]} 29. Bxf6 {[%emt 0:01:53]} Re1+ {[%emt 0:00:30]} 30. Ka2 {[%emt 0:00:45]} gxf6 {[%emt 0:00:08]} 31. Bxa6 {[%emt 0:02:29]} Re5 {[%emt 0:02:02]} 32. Bc4 {[%emt 0:00:26]} Rg5 {[%emt 0:00:33]} 33. Rd2 {[%emt 0:01:24]} Rc5 {[%emt 0:00:14]} 34. Kb3 {[%emt 0:01:37]} h5 {[%emt 0:00:05]} 35. Kb4 {[%emt 0:00:26]} Rf5 {[%emt 0:00:33]} 36. Rd6 {[%emt 0:00:23]} Be8 {[%emt 0:00:43]} 37. Rd5 {[%emt 0:00:40]} Rf4 {[%emt 0:01:30]} 38. Kc5 {[%emt 0:02:00]} h4 {[%emt 0:00:38]} 39. h3 {[%emt 0:00:26]} Bc6 {[%emt 0:00:56]} 40. Rd4 {[%emt 0:00:35]} Rxd4 {[%emt 0:00:18]} 41. Kxd4 {[%emt 0:00:02]} Kg7 {[%emt 0:00:19]} 42. Kc5 {[%emt 0:00:07]} Bd7 {[%emt 0:00:33]} 43. b4 {[%emt 0:00:57]} Kg6 {[%emt 0:00:06]} 44. b5 {[%emt 0:00:17]} Bc8 {[%emt 0:00:51]} 45. b6 {[%emt 0:00:24]} Kg5 {[%emt 0:00:10]} 46. Kc6 {[%emt 0:00:14]} Kf4 {[%emt 0:00:38]} 47. Kc7 {[%emt 0:00:08]} Bb7 {[%emt 0:00:58]} 48. Kxb7 {[%emt 0:00:11]} Kg3 {[%emt 0:00:05]} 49. Kc7 {[%emt 0:00:30]} Kxg2 {[%emt 0:00:05]} 50. b7 {[%emt 0:00:10]} Kxh3 {[%emt 0:00:05]} 51. b8=Q {[%emt 0:00:06]} Kh2 {[%emt 0:00:13]} 52. Qb2+ {[%emt 0:00:09]} Kg3 {[%emt 0:00:10]} 53. Qxf6 {[%emt 0:00:28]} h3 {[%emt 0:00:07]} 54. Qg5+ {[%emt 0:00:08]} Kf2 {[%emt 0:00:08]} 55. Qh4+ {[%emt 0:00:09]} Kg2 {[%emt 0:00:06]} 56. Qg4+ {[%emt 0:00:14]} Kf2 {[%emt 0:00:20]} 57. Qxh3 {[%emt 0:00:08]} f5 {[%emt 0:00:06]} 58. Qxf5 {[%emt 0:00:24]} Ke3 {[%emt 0:00:09]} 59. Qe4+ {[%emt 0:00:18]} Kf2 {[%emt 0:00:41]} 60. Qe2+ {[%emt 0:00:25]} Kg3 {[%emt 0:00:11]} 61. Qe5+ {[%emt 0:01:14]} Kf2 {[%emt 0:00:08]} 62. Qf4 {[%emt 0:00:14]} Kg2 {[%emt 0:00:05]} 63. Bf1+ {[%emt 0:00:10]} Kf2 {[%emt 0:00:18]} 64. Qd2+ {[%emt 0:00:17]} Kg3 {[%emt 0:00:06]} 65. Qe3 {[%emt 0:00:40]} Kh4 {[%emt 0:00:14]} 66. Qg1 {[%emt 0:00:10]} Kh5 {[%emt 0:00:05]} 67. Bd3 1-0

[Event "32nd Panamerican Youth 2022"]
[Site "Montevideo"]
[Date "2022.07.01"]
[Round "8.18"]
[White "Caceres Sandoval, Eduardo"]
[Black "Ticona Rocabado, Licael Roderick"]
[Result "0-1"]
[ECO "C02"]
[WhiteElo "1677"]
[BlackElo "2203"]
[Annotator "RC"]
[PlyCount "169"]
[EventDate "2022.06.26"]
[EventType "swiss"]
[EventCountry "URU"]
[SourceTitle "playchess.com"]
[Source "ChessBase"]
[SourceQuality "1"]
[TimeControl "5400+30"]

1. e4 {[%emt 0:00:10]} e6 {[%emt 0:00:11]} 2. d4 {[%emt 0:00:09]} d5 {[%emt 0:00:04]} 3. e5 {[%emt 0:00:10]} c5 {[%emt 0:00:16]} 4. c3 {[%emt 0:00:22]} Nc6 {[%emt 0:00:19]} 5. Nf3 {[%emt 0:00:14]} Nge7 {[%emt 0:00:06]} 6. Na3 {[%emt 0:00:13]} Nf5 {[%emt 0:01:17]} 7. Nc2 {[%emt 0:00:30]} cxd4 {[%emt 0:00:18]} 8. cxd4 {[%emt 0:00:09]} Bd7 {[%emt 0:02:41]} 9. Bd3 {[%emt 0:00:59]} Nb4 {[%emt 0:00:14]} 10. Nxb4 {[%emt 0:01:40]} Bxb4+ {[%emt 0:00:10]} 11. Bd2 {[%emt 0:00:28]} Qb6 {[%emt 0:00:40]} 12. Bxb4 {[%emt 0:01:16]} Qxb4+ {[%emt 0:00:16]} 13. Qd2 {[%emt 0:00:07]} Qb6 {[%emt 0:00:25]} 14. Bxf5 {[%emt 0:00:56]} exf5 {[%emt 0:00:01]} 15. O-O {[%emt 0:00:26]} O-O {[%emt 0:00:27]} 16. Rac1 {[%emt 0:00:22]} Rac8 {[%emt 0:02:52]} 17. Rxc8 {[%emt 0:02:28]} Rxc8 {[%emt 0:00:07]} 18. Rc1 {[%emt 0:00:05]} Rxc1+ {[%emt 0:00:14]} 19. Qxc1 {[%emt 0:00:05]} h6 {[%emt 0:00:14]} 20. h4 {[%emt 0:01:25]} Be6 {[%emt 0:00:15]} 21. Qc3 {[%emt 0:01:50]} Qb5 {[%emt 0:04:04]} 22. Qc2 {[%emt 0:01:09]} a5 {[%emt 0:03:50]} 23. b3 {[%emt 0:02:06]} b6 {[%emt 0:01:28]} 24. Qc3 {[%emt 0:10:05]} Kh7 {[%emt 0:01:02]} 25. Qd2 {[%emt 0:04:23]} Bc8 {[%emt 0:03:08]} 26. Qc2 {[%emt 0:00:36]} Be6 {[%emt 0:00:20]} 27. Qd2 {[%emt 0:03:04]} Kg8 {[%emt 0:01:12]} 28. Qc2 {[%emt 0:02:26]} Qb4 {[%emt 0:01:46]} 29. Qd2 {[%emt 0:00:32]} Qa3 {[%emt 0:01:01]} 30. Qc2 {[%emt 0:00:48]} Kh7 {[%emt 0:00:49]} 31. Ne1 {[%emt 0:02:06]} Qb4 {[%emt 0:00:32]} 32. Nf3 {[%emt 0:00:07]} Kg8 {[%emt 0:02:31]} 33. Qd2 {[%emt 0:00:22]} Qe7 {[%emt 0:00:16]} 34. g3 {[%emt 0:00:23]} Bc8 {[%emt 0:00:31]} 35. Ne1 {[%emt 0:00:56]} Ba6 {[%emt 0:02:29]} 36. Nc2 {[%emt 0:00:24]} Qe6 {[%emt 0:02:06]} 37. f4 {[%emt 0:04:41]} Qg6 {[%emt 0:00:56]} 38. Kg2 {[%emt 0:00:12]} Qh5 {[%emt 0:00:28]} 39. Kf2 {[%emt 0:08:21]} Qg4 {[%emt 0:06:16]} 40. Ne3 {[%emt 0:00:11]} Qh3 {[%emt 0:00:09]} 41. Ng2 {[%emt 0:00:42]} Kh7 {[%emt 0:01:31]} 42. Qe3 {[%emt 0:01:56]} Bb5 {[%emt 0:01:37]} 43. a4 {[%emt 0:01:08]} Ba6 {[%emt 0:00:15]} 44. Qd2 {[%emt 0:00:20]} Kg8 {[%emt 0:05:51]} 45. Qe3 {[%emt 0:00:16]} Kf8 {[%emt 0:01:03]} 46. Kg1 {[%emt 0:03:42]} Qg4 {[%emt 0:00:45]} 47. Kh2 {[%emt 0:03:53]} Qd1 {[%emt 0:02:06]} 48. Qc3 {[%emt 0:00:41]} Kg8 {[%emt 0:01:15]} 49. Qe3 {[%emt 0:02:53]} Bd3 {[%emt 0:03:27]} 50. Ne1 {[%emt 0:16:35]} Be4 {[%emt 0:01:53]} 51. Kg1 {[%emt 0:00:11]} Qa1 {[%emt 0:01:54]} 52. Kf1 {[%emt 0:02:31]} Qb2 {[%emt 0:00:11]} 53. Kg1 {[%emt 0:00:21]} Kh7 {[%emt 0:00:40]} 54. Kf1 {[%emt 0:00:08]} Kg6 {[%emt 0:00:36]} 55. Kg1 {[%emt 0:02:23]} Kh5 {[%emt 0:00:58]} 56. Nf3 {[%emt 0:01:15]} Qc2 {[%emt 0:01:42]} 57. Ne1 {[%emt 0:02:49]} Qb2 {[%emt 0:02:19]} 58. Nf3 {[%emt 0:00:08]} Qb1+ {[%emt 0:04:22]} 59. Ne1 {[%emt 0:00:42]} Qd1 {[%emt 0:06:24]} 60. Kf2 {[%emt 0:03:41]} Kg4 61. Qc3 {[%emt 0:01:01]} Qb1 {[%emt 0:02:16]} 62. Qd2 {[%emt 0:01:11]} Kh5 {[%emt 0:01:52]} 63. Qe2+ {[%emt 0:02:32]} Kg6 {[%emt 0:00:06]} 64. Qe3 {[%emt 0:00:42]} Qb2+ {[%emt 0:02:07]} 65. Kg1 {[%emt 0:00:04]} Qa3 {[%emt 0:00:24]} 66. Nf3 {[%emt 0:01:39]} Bxf3 {[%emt 0:00:21]} 67. Qxf3 {[%emt 0:00:11]} Qa1+ {[%emt 0:00:04]} 68. Kh2 {[%emt 0:01:02]} Qxd4 {[%emt 0:00:07]} 69. g4 {[%emt 0:03:57]} Qd2+ {[%emt 0:03:37]} 70. Kh3 {[%emt 0:00:53]} d4 {[%emt 0:00:35]} 71. h5+ {[%emt 0:02:43]} Kh7 {[%emt 0:00:06]} 72. gxf5 {[%emt 0:00:04]} Qc2 {[%emt 0:03:33]} 73. f6 {[%emt 0:01:02]} gxf6 {[%emt 0:01:53]} 74. Qd5 {[%emt 0:04:47]} Qf5+ {[%emt 0:00:54]} 75. Kg3 {[%emt 0:00:01]} fxe5 {[%emt 0:01:19]} 76. fxe5 {[%emt 0:01:38]} d3 {[%emt 0:00:39]} 77. Qd4 {[%emt 0:00:16]} d2 {[%emt 0:03:02]} 78. Qxd2 {[%emt 0:00:19]} Qxe5+ {[%emt 0:00:09]} 79. Kg4 {[%emt 0:00:32]} Qe6+ {[%emt 0:00:10]} 80. Kf4 {[%emt 0:00:26]} Qxb3 81. Kf5 Qxa4 {[%emt 0:02:22]} 82. Kf6 {[%emt 0:00:05]} Qh4+ {[%emt 0:00:07]} 83. Kxf7 {[%emt 0:00:10]} Qxh5+ {[%emt 0:00:09]} 84. Kf8 {[%emt 0:00:07]} Qf5+ {[%emt 0:00:17]} 85. Ke8 {[%emt 0:00:02]} 0-1

[Event "32nd Panamerican Youth 2022"]
[Site "Montevideo"]
[Date "2022.07.01"]
[Round "8.19"]
[White "Azher, Hossain"]
[Black "Caceres Benitez, Arturo Eduardo"]
[Result "0-1"]
[ECO "E08"]
[WhiteElo "1406"]
[BlackElo "1570"]
[Annotator "NA RC"]
[PlyCount "81"]
[EventDate "2022.06.26"]
[EventType "swiss"]
[EventCountry "URU"]
[SourceTitle "playchess.com"]
[Source "ChessBase"]
[SourceQuality "1"]
[TimeControl "5400+30"]

1. d4 {[%emt 0:00:04]} Nf6 {[%emt 0:00:10]} 2. Nf3 {[%emt 0:00:02]} e6 {[%emt 0:00:06]} 3. g3 {[%emt 0:00:08]} d5 {[%emt 0:01:37]} 4. c4 {[%emt 0:00:08]} c6 {[%emt 0:00:30]} 5. Qc2 {[%emt 0:03:17]} Be7 {[%emt 0:01:38]} 6. Bg2 {[%emt 0:00:09]} O-O {[%emt 0:03:53]} 7. O-O {[%emt 0:00:06]} Nbd7 {[%emt 0:01:17]} 8. b3 {[%emt 0:00:22]} Ne4 {[%emt 0:02:13]} 9. Nbd2 {[%emt 0:05:32]} f5 {[%emt 0:02:23]} 10. Bb2 {[%emt 0:00:25]} Bd6 {[%emt 0:03:12]} 11. Ne5 {[%emt 0:07:02]} Nxe5 {[%emt 0:01:04]} 12. dxe5 {[%emt 0:00:09]} Be7 {[%emt 0:00:16]} 13. Rad1 {[%emt 0:01:37]} Qe8 {[%emt 0:02:37]} 14. e3 {[%emt 0:05:46]} a5 {[%emt 0:03:08]} 15. a3 {[%emt 0:01:35]} Qh5 {[%emt 0:01:51]} 16. Nf3 {[%emt 0:12:53]} Bd7 {[%emt 0:02:40]} 17. Nd4 {[%emt 0:02:09]} Ng5 {[%emt 0:06:41]} 18. c5 {[%emt 0:15:03]} b6 {[%emt 0:05:32]} 19. b4 {[%emt 0:06:19]} axb4 {[%emt 0:01:15]} 20. axb4 {[%emt 0:00:02]} bxc5 {[%emt 0:02:49]} 21. bxc5 {[%emt 0:00:05]} Ra5 {[%emt 0:01:35]} 22. Nb3 {[%emt 0:00:48]} Ra4 {[%emt 0:00:54]} 23. Rd4 {[%emt 0:03:39]} Rfa8 {[%emt 0:00:50]} 24. Ra1 {[%emt 0:01:06]} Rxa1+ {[%emt 0:01:08]} 25. Bxa1 {[%emt 0:00:17]} Nf3+ {[%emt 0:01:37]} 26. Bxf3 {[%emt 0:00:02]} Qxf3 {[%emt 0:00:03]} 27. Rf4 {[%emt 0:01:22]} Qh5 {[%emt 0:00:15]} 28. Rb4 {[%emt 0:01:00]} Ra7 {[%emt 0:04:45]} 29. Rb8+ {[%emt 0:04:10]} Kf7 {[%emt 0:00:04]} 30. Bc3 {[%emt 0:01:04]} Qg4 {[%emt 0:05:37]} 31. Rb4 {[%emt 0:00:59]} Qh3 {[%emt 0:01:53]} 32. Bd2 {[%emt 0:06:56]} Bc8 {[%emt 0:01:16]} 33. Qc1 {[%emt 0:02:07]} Ra2 {[%emt 0:01:01]} 34. Rb8 {[%emt 0:02:36]} Ba6 {[%emt 0:00:32]} 35. Ra8 {[%emt 0:00:27]} Rc2 {[%emt 0:00:16]} 36. Qe1 {[%emt 0:05:12]} Bc4 {[%emt 0:02:02]} 37. Ra3 {[%emt 0:00:42]} Rb2 {[%emt 0:00:21]} 38. Qd1 {[%emt 0:00:57]} d4 {[%emt 0:01:19]} 39. exd4 {[%emt 0:00:56]} Bd3 {[%emt 0:00:23]} 40. f3 {[%emt 0:01:45]} Bc2 {[%emt 0:00:18]} 41. Bc1 0-1

[Event "32nd Panamerican Youth 2022"]
[Site "Montevideo"]
[Date "2022.07.01"]
[Round "8.20"]
[White "Cabiativa, Juan Esteban"]
[Black "Handsztok, Matias"]
[Result "1-0"]
[ECO "E91"]
[WhiteElo "2019"]
[BlackElo "1944"]
[Annotator "RC"]
[PlyCount "115"]
[EventDate "2022.06.26"]
[EventType "swiss"]
[EventCountry "URU"]
[SourceTitle "playchess.com"]
[Source "ChessBase"]
[SourceQuality "1"]
[TimeControl "5400+30"]

1. c4 {[%emt 0:00:05]} Nf6 {[%emt 0:00:08]} 2. Nf3 {[%emt 0:01:11]} g6 {[%emt 0:00:30]} 3. Nc3 {[%emt 0:01:24]} Bg7 {[%emt 0:00:20]} 4. e4 {[%emt 0:01:52]} d6 {[%emt 0:00:10]} 5. d4 {[%emt 0:04:09]} O-O {[%emt 0:00:28]} 6. Be2 {[%emt 0:00:44]} c5 {[%emt 0:00:07]} 7. d5 {[%emt 0:09:32]} e6 {[%emt 0:01:04]} 8. h3 {[%emt 0:01:53]} Qe7 {[%emt 0:06:27]} 9. O-O {[%emt 0:03:17]} e5 {[%emt 0:00:25]} 10. Be3 {[%emt 0:17:11]} Ne8 {[%emt 0:03:12]} 11. Qc1 {[%emt 0:02:56]} f5 {[%emt 0:00:37]} 12. Bg5 {[%emt 0:01:11]} Nf6 {[%emt 0:00:18]} 13. exf5 {[%emt 0:02:49]} gxf5 {[%emt 0:02:00]} 14. Re1 {[%emt 0:02:39]} a6 {[%emt 0:06:55]} 15. a4 {[%emt 0:10:38]} Qf7 {[%emt 0:01:29]} 16. Ra3 {[%emt 0:08:11]} Ne4 {[%emt 0:04:39]} 17. Bh6 {[%emt 0:10:42]} Nxc3 {[%emt 0:01:32]} 18. Rxc3 {[%emt 0:00:18]} f4 {[%emt 0:00:15]} 19. Bxg7 {[%emt 0:05:21]} Qxg7 {[%emt 0:00:18]} 20. Nh2 {[%emt 0:05:06]} Nd7 {[%emt 0:04:16]} 21. Bg4 {[%emt 0:00:54]} Nf6 {[%emt 0:00:19]} 22. Bxc8 {[%emt 0:00:19]} Raxc8 {[%emt 0:00:10]} 23. Kh1 {[%emt 0:03:25]} Kh8 {[%emt 0:00:30]} 24. g3 {[%emt 0:02:36]} Rce8 {[%emt 0:16:25]} 25. Nf1 {[%emt 0:02:26]} Qh6 {[%emt 0:02:31]} 26. gxf4 {[%emt 0:00:46]} exf4 {[%emt 0:01:39]} 27. Rxe8 {[%emt 0:00:36]} Rxe8 {[%emt 0:00:07]} 28. Rf3 {[%emt 0:01:11]} Re4 {[%emt 0:00:52]} 29. Nd2 {[%emt 0:00:45]} Qh5 {[%emt 0:06:47]} 30. Rd3 {[%emt 0:00:47]} Qe2 {[%emt 0:01:07]} 31. Qc3 {[%emt 0:00:29]} Re5 {[%emt 0:00:16]} 32. Rf3 {[%emt 0:00:30]} Qe1+ {[%emt 0:10:51]} 33. Kh2 {[%emt 0:00:12]} Kg8 {[%emt 0:00:13]} 34. Nb3 {[%emt 0:00:49]} Qf1 {[%emt 0:00:59]} 35. Nd2 {[%emt 0:00:18]} Qe1 {[%emt 0:10:30]} 36. Nb3 {[%emt 0:00:03]} Qd1 {[%emt 0:03:34]} 37. Qd3 {[%emt 0:00:53]} Qxd3 {[%emt 0:00:40]} 38. Rxd3 {[%emt 0:00:01]} Re2 {[%emt 0:00:07]} 39. Rd2 {[%emt 0:00:07]} f3 {[%emt 0:00:06]} 40. Rd3 {[%emt 0:01:20]} Rxf2+ 41. Kg3 Rxb2 {[%emt 0:01:23]} 42. Rxf3 {[%emt 0:00:11]} Kg7 {[%emt 0:00:26]} 43. Kf4 {[%emt 0:00:36]} Kg6 {[%emt 0:02:00]} 44. Rg3+ {[%emt 0:00:12]} Kf7 {[%emt 0:00:06]} 45. Rf3 {[%emt 0:00:07]} Re2 {[%emt 0:00:43]} 46. Na5 {[%emt 0:00:50]} Re4+ {[%emt 0:00:42]} 47. Kg5 {[%emt 0:00:08]} h6+ {[%emt 0:00:21]} 48. Kf5 {[%emt 0:00:32]} Rh4 {[%emt 0:00:42]} 49. Nxb7 {[%emt 0:00:26]} Ne8 {[%emt 0:00:13]} 50. Nd8+ {[%emt 0:01:00]} Kg7 {[%emt 0:04:51]} 51. Ke6 {[%emt 0:00:37]} Rxc4 {[%emt 0:00:12]} 52. Rg3+ {[%emt 0:00:27]} Kf8 {[%emt 0:00:34]} 53. Rf3+ {[%emt 0:00:12]} Kg8 {[%emt 0:00:13]} 54. Rg3+ {[%emt 0:00:07]} Kh8 {[%emt 0:07:52]} 55. Nf7+ {[%emt 0:00:34]} Kh7 {[%emt 0:00:11]} 56. Nxd6 {[%emt 0:00:07]} Nxd6 {[%emt 0:00:48]} 57. Kxd6 {[%emt 0:00:04]} Rxa4 {[%emt 0:00:11]} 58. Kc7 {[%emt 0:00:32]} 1-0

[Event "32nd Panamerican Youth 2022"]
[Site "Montevideo"]
[Date "2022.07.01"]
[Round "8.21"]
[White "Beltran Salvador, Milka"]
[Black "Francisco Guecamburu, Candela Be"]
[Result "0-1"]
[ECO "A65"]
[WhiteElo "1694"]
[BlackElo "2240"]
[Annotator "TA"]
[PlyCount "106"]
[EventDate "2022.06.26"]
[EventType "swiss"]
[EventCountry "URU"]
[SourceTitle "playchess.com"]
[Source "ChessBase"]
[SourceQuality "1"]
[TimeControl "5400+30"]

{[%evp 20,106,54,32,36,29,47,39,113,110,147,112,118,75,74,83,66,83,135,141,229,243,305,234,427,440,742,331,347,326,458,118,94,112,115,104,109,121,104,64,72,68,51,29,19,25,27,15,36,-28,-29,-180,-187,-186,-171,-250,-245,-247,-207,-274,-210,-212,-158,-308,-314,-441,-435,-516,-510,-703,-686,-669,-648,-889,-869,-961,-671,-650,-612,-675,-668,-1081,-1051,-1453,-1401,-5318,-2132,-29984,-29984]} 1. d4 {[%emt 0:00:04]} Nf6 {[%emt 0:00:07]} 2. c4 {[%emt 0:00:05]} c5 {[%emt 0:00:05]} 3. d5 {[%emt 0:00:27]} e6 {[%emt 0:00:08]} 4. Nc3 {[%emt 0:00:14]} exd5 {[%emt 0:00:07]} 5. cxd5 {[%emt 0:00:05]} d6 {[%emt 0:00:06]} 6. e4 {[%emt 0:00:03]} g6 {[%emt 0:00:09]} 7. Bd3 {[%emt 0:01:13]} Bg7 {[%emt 0:00:09]} 8. h3 {[%emt 0:00:09]} O-O {[%emt 0:00:52]} 9. Nf3 {[%emt 0:00:15]} a6 {[%emt 0:02:09]} 10. a4 {[%emt 0:00:19]} Nbd7 {[%emt 0:01:10]} 11. Bg5 {[%emt 0:01:10]} h6 {[%emt 0:03:27] A65: Modern Benoni: 6 e4.} 12. Be3 {[%emt 0:03:15][%cal Bg5e3,Be3d4,Bd4e5][%mdl 32]} Re8 {[%emt 0:07:26]} 13. O-O {[%emt 0:04:39]} c4 {[%emt 0:11:10]} ({Better is} 13... g5 $14) 14. Bc2 $16 {[%emt 0:08:25]} (14. Bxc4 $6 Nxe4 15. Nxe4 Rxe4 $14) 14... Qc7 {[%emt 0:00:19]} 15. Re1 {[%emt 0:02:48]} Nc5 {[%emt 0:19:52]} 16. Bd4 {[%emt 0:26:42]} Bd7 {[%emt 0:13:01]} 17. e5 {[%emt 0:09:58]} dxe5 {[%emt 0:01:41]} 18. Bxe5 {[%emt 0:00:36] [#]} Qb6 $146 {[%emt 0:04:07]} (18... Qd8 $142) ({Predecessor:} 18... Qd8 19. Qd4 Rc8 20. Qxc4 Nxa4 21. Qd4 Nxb2 22. Bb3 Bb5 23. Nxb5 Rxe5 24. Nxe5 Nd7 {1-0 (33) Varga,P (2390)-Schroter,T (2280) Zalakaros 1997}) 19. a5 $36 {[%emt 0:03:03][%mdl 2048] Black is under strong pressure.} Qb4 {[%emt 0:16:51] [#]} (19... Qd8 $16) 20. Qd4 $1 $18 {[%emt 0:05:36]} Nh5 {[%emt 0:00:19]} (20... Qxb2 $2 21. Ra2 (21. Qxc5 Qxc2 22. Rac1 Qf5 $16) (21. Bxf6 Bxf6 22. Qxf6 Qxc2 $11) 21... Nb3 22. Bxb3 Qxb3 23. Rb1 Nxd5 24. Rxb3 Rxe5 25. Nxe5 $18) 21. g4 {[%emt 0:03:20] Against Bf5} Bxe5 $2 {[%emt 0:02:38]} (21... f6 22. Bd6 (22. gxh5 fxe5 23. Qd2 e4 $11) 22... Qxb2) 22. Nxe5 {[%emt 0:00:33]} Ng7 {[%emt 0:00:22] [#]} (22... Rxe5 $142 23. Qxe5 Ng7) 23. Qf4 {[%emt 0:02:54]} (23. Nxf7 $142 $1 {[%mdl 512]} Rxe1+ 24. Rxe1) 23... Rxe5 {[%emt 0:01:03]} 24. Qxe5 {[%emt 0:01:33]} Qxb2 {[%emt 0:01:59]} (24... Bb5 {was worth a try.} 25. Qd4 Nd7) 25. Na4 $2 {[%emt 0:03:10]} (25. Ra2 $18 {is the precise move to win.} Qb4 26. Qd4) 25... Qxe5 $16 {[%emt 0:04:46]} 26. Rxe5 {[%emt 0:00:11]} Bxa4 {[%emt 0:00:06]} 27. Bxa4 {[%emt 0:00:10]} Rd8 {[%emt 0:00:05]} 28. Bc2 {[%emt 0:02:26]} Ne8 {[%emt 0:01:54]} 29. Rd1 {[%emt 0:06:32][%cal Od5d6]} (29. d6 {with more complications.} Ne6 30. d7 Nf6 31. Ba4) 29... Nd6 {[%emt 0:00:32]} 30. h4 {[%emt 0:00:40]} Nd7 {[%emt 0:00:44]} 31. Re7 {[%emt 0:01:28]} Kf8 {[%emt 0:00:04]} 32. Re3 {[%emt 0:00:43]} Rc8 {[%emt 0:01:12]} 33. h5 {[%emt 0:01:04]} gxh5 {[%emt 0:00:37]} 34. gxh5 {[%emt 0:00:09]} (34. Bf5 $14 Rc7 35. Bxd7 Rxd7 36. gxh5) 34... Rc5 $11 {[%emt 0:00:11]} 35. Ba4 $2 {[%emt 0:06:40]} (35. Ra1 $11) 35... Nf6 $19 {[%emt 0:00:45]} 36. Rf3 {[%emt 0:02:02]} Nxd5 {[%emt 0:01:20]} 37. Bc2 {[%emt 0:01:42]} (37. Rh3 {might work better.}) 37... Rxa5 {[%emt 0:02:02]} 38. Re1 {[%emt 0:00:21]} Nb4 {[%emt 0:01:11][%csl LRc2,LRh5]} 39. Bg6 {[%emt 0:02:04]} Nc6 {[%emt 0:03:08]} 40. Rf6 {[%emt 0:02:19]} Rd5 {[%emt 0:00:08] Threatens to win with ...Kg7.} 41. Bb1 {[%emt 0:00:55]} (41. Ree6 $17 {is the only way for White.}) 41... Kg7 {[%emt 0:00:22]} 42. Rf4 {[%emt 0:00:26]} (42. Rf3 $142) 42... b5 {[%emt 0:00:46]} 43. Rh4 {[%emt 0:00:26]} a5 {[%emt 0:00:27][%cal Ba6a5,Ba5a4][%mdl 32]} 44. f4 {[%emt 0:00:07]} Rd2 {[%emt 0:00:27]} 45. Rg4+ {[%emt 0:00:33]} Kf6 {[%emt 0:00:27]} 46. Bh7 {[%emt 0:01:21]} Nd4 {[%emt 0:00:26]} 47. Kf1 {[%emt 0:00:29]} Nf3 {[%emt 0:00:16] Hoping for ...Nh2+.} 48. Ra1 {[%emt 0:00:35]} a4 {[%emt 0:00:57] ...Nf5 is the strong threat.} 49. Rg3 {[%emt 0:00:11]} Nd4 {[%emt 0:00:10] aiming for ...N6f5.} 50. Re1 {[%emt 0:00:36]} b4 {[%emt 0:00:21] White must now prevent ...a3.} 51. Re5 {[%emt 0:00:22]} c3 {[%emt 0:00:55] Strongly threatening ...a3.} 52. Rd5 {[%emt 0:00:45]} N4f5 {[%emt 0:00:24]} (52... N6f5 $142 53. Rf3 c2) 53. Rxd2 {[%emt 0:00:20]} Nxg3+ {Never resign too early!  Weighted Error Value: White=1.08/Black=0.39} 0-1